[Event "Floripa Super Blitz 2019"]
[Site "Florianopolis"]
[Date "2019.01.23"]
[Round "1.3"]
[White "Granda Zuniga, Julio E"]
[Black "Da Silva Junior, Marco Aurelio"]
[Result "1-0"]
[ECO "D61"]
[WhiteElo "2586"]
[BlackElo "1729"]
[Annotator "ChessBase"]
[PlyCount "81"]
[EventDate "2019.01.23"]
[EventType "swiss"]
[EventCountry "BRA"]
[SourceTitle "playchess.com"]
[Source "ChessBase"]
[SourceQuality "1"]
[TimeControl "180+2"]

1. d4 {[%emt 0:00:00]} d5 {[%emt 0:00:00]} 2. c4 {[%emt 0:00:01]} e6 {[%emt 0:00:00]} 3. Nc3 {[%emt 0:00:03]} Nf6 {[%emt 0:00:02]} 4. Bg5 {[%emt 0:00:01]} Be7 {[%emt 0:00:10]} 5. e3 {[%emt 0:00:02]} Nbd7 {[%emt 0:00:02]} 6. Nf3 {[%emt 0:00:09]} O-O {[%emt 0:00:04]} 7. Qc2 {[%emt 0:00:02]} h6 {[%emt 0:00:14]} 8. Bh4 {[%emt 0:00:02]} Ng4 {[%emt 0:00:05]} 9. Bxe7 {[%emt 0:00:03]} Qxe7 {[%emt 0:00:02]} 10. cxd5 {[%emt 0:00:03]} exd5 {[%emt 0:00:09]} 11. Nxd5 {[%emt 0:00:04]} Qd6 {[%emt 0:00:13]} 12. Nxc7 {[%emt 0:00:04]} Rb8 {[%emt 0:00:23]} 13. Nb5 {[%emt 0:00:06]} Qb4+ {[%emt 0:00:11]} 14. Qc3 {[%emt 0:00:06]} Qxc3+ {[%emt 0:00:09]} 15. Nxc3 {[%emt 0:00:06]} Nb6 {[%emt 0:00:03]} 16. Be2 {[%emt 0:00:09]} Be6 {[%emt 0:00:10]} 17. O-O {[%emt 0:00:02]} Bc4 {[%emt 0:00:01]} 18. Rfc1 {[%emt 0:00:07]} Rbc8 {[%emt 0:00:11]} 19. b3 {[%emt 0:00:01]} Bxe2 {[%emt 0:00:02]} 20. Nxe2 {[%emt 0:00:02]} Nf6 {[%emt 0:00:04]} 21. Ne5 {[%emt 0:00:08]} Nbd5 {[%emt 0:00:18]} 22. Nd3 {[%emt 0:00:09]} Ne4 {[%emt 0:00:06]} 23. f3 {[%emt 0:00:08]} Nec3 {[%emt 0:00:07]} 24. Nxc3 {[%emt 0:00:05]} Nxc3 {[%emt 0:00:01]} 25. Kf2 {[%emt 0:00:07]} Rc7 {[%emt 0:00:06]} 26. Nc5 {[%emt 0:00:07]} Nb5 {[%emt 0:00:12]} 27. a4 {[%emt 0:00:19]} Nd6 {[%emt 0:00:08]} 28. Nd3 {[%emt 0:00:02]} Rfc8 {[%emt 0:00:02]} 29. Rxc7 {[%emt 0:00:02]} Rxc7 {[%emt 0:00:01]} 30. Rc1 {[%emt 0:00:01]} Rxc1 {[%emt 0:00:02]} 31. Nxc1 {[%emt 0:00:02]} Kf8 {[%emt 0:00:02]} 32. e4 {[%emt 0:00:02]} Ke7 {[%emt 0:00:01]} 33. Ke3 {[%emt 0:00:02]} f6 {[%emt 0:00:08]} 34. e5 {[%emt 0:00:13]} fxe5 {[%emt 0:00:07]} 35. dxe5 {[%emt 0:00:01]} Nf7 {[%emt 0:00:03]} 36. Nd3 {[%emt 0:00:08]} b6 {[%emt 0:00:05]} 37. f4 {[%emt 0:00:03]} g5 {[%emt 0:00:08]} 38. f5 {[%emt 0:00:03]} Nd8 {[%emt 0:00:07]} 39. Nb4 {[%emt 0:00:02]} a5 {[%emt 0:00:04]} 40. Nd5+ {[%emt 0:00:03]} Kf7 {[%emt 0:00:02]} 41. e6+ {[%emt 0:00:03]} 1-0

[Event "Floripa Super Blitz 2019"]
[Site "Florianopolis"]
[Date "2019.01.23"]
[Round "2"]
[White "De Oliveira, Guilherme Alfredo B"]
[Black "Sunye Neto, Jaime"]
[Result "0-1"]
[ECO "B43"]
[WhiteElo "1893"]
[BlackElo "2446"]
[Annotator "NA RC"]
[PlyCount "96"]
[EventDate "2019.01.23"]
[EventType "swiss"]
[EventCountry "BRA"]
[SourceTitle "playchess.com"]
[Source "ChessBase"]
[SourceQuality "1"]
[TimeControl "180+2"]

1. e4 {[%emt 0:00:00]} c5 {[%emt 0:00:00]} 2. Nf3 {[%emt 0:00:00]} e6 {[%emt 0:00:01]} 3. d4 {[%emt 0:00:01]} cxd4 {[%emt 0:00:01]} 4. Nxd4 {[%emt 0:00:01]} a6 {[%emt 0:00:01]} 5. Nc3 {[%emt 0:00:02]} b5 {[%emt 0:00:01]} 6. a3 {[%emt 0:00:01]} Bb7 {[%emt 0:00:02]} 7. Bd3 {[%emt 0:00:03]} Bc5 {[%emt 0:00:11]} 8. Nb3 {[%emt 0:00:02]} Bb6 {[%emt 0:00:02]} 9. O-O {[%emt 0:00:03]} Nc6 {[%emt 0:00:02]} 10. Kh1 {[%emt 0:00:04]} Nf6 {[%emt 0:00:06]} 11. f4 {[%emt 0:00:09]} d6 {[%emt 0:00:02]} 12. Qf3 {[%emt 0:00:12]} Qc7 {[%emt 0:00:11]} 13. Bd2 {[%emt 0:00:26]} O-O {[%emt 0:00:06]} 14. Rae1 {[%emt 0:00:02]} b4 {[%emt 0:00:02]} 15. Na4 {[%emt 0:00:14]} bxa3 {[%emt 0:00:02]} 16. Nxb6 {[%emt 0:00:07]} Qxb6 {[%emt 0:00:02]} 17. bxa3 {[%emt 0:00:01]} Ne7 {[%emt 0:00:08]} 18. Bc3 {[%emt 0:00:06]} Nd7 {[%emt 0:00:12]} 19. Qg4 {[%emt 0:00:01]} Ng6 {[%emt 0:00:07]} 20. h4 {[%emt 0:00:05]} Rfc8 {[%emt 0:00:35]} 21. Ba1 {[%emt 0:00:08]} Qd8 {[%emt 0:00:03]} 22. h5 {[%emt 0:00:33]} Qh4+ {[%emt 0:00:01]} 23. Qxh4 {[%emt 0:00:01]} Nxh4 {[%emt 0:00:01]} 24. g3 {[%emt 0:00:02]} Nf5 {[%emt 0:00:01]} 25. Kh2 {[%emt 0:00:05]} Ne7 {[%emt 0:00:02]} 26. Rb1 {[%emt 0:00:09]} Bc6 {[%emt 0:00:03]} 27. Na5 {[%emt 0:00:06]} Ba4 {[%emt 0:00:01]} 28. Rb7 {[%emt 0:00:13]} Bxc2 {[%emt 0:00:08]} 29. Be2 {[%emt 0:00:48]} Ba4 {[%emt 0:00:09]} 30. Rfb1 {[%emt 0:00:08]} Kf8 {[%emt 0:00:04]} 31. Bf3 {[%emt 0:00:02]} Nc5 {[%emt 0:00:01]} 32. R7b4 {[%emt 0:00:02]} Bc6 {[%emt 0:00:02]} 33. Nc4 {[%emt 0:00:03]} Rd8 {[%emt 0:00:04]} 34. Nb6 {[%emt 0:00:01]} Rab8 {[%emt 0:00:01]} 35. a4 {[%emt 0:00:02]} a5 {[%emt 0:00:01]} 36. R4b2 {[%emt 0:00:06]} Bxe4 {[%emt 0:00:02]} 37. Bxe4 {[%emt 0:00:02]} Nxe4 {[%emt 0:00:01]} 38. Rb5 {[%emt 0:00:01]} Nc5 {[%emt 0:00:06]} 39. Rxa5 {[%emt 0:00:02]} Nc6 {[%emt 0:00:02]} 40. Rab5 {[%emt 0:00:01]} Na7 {[%emt 0:00:02]} 41. R5b4 {[%emt 0:00:02]} Nc6 {[%emt 0:00:01]} 42. Rb5 Rb7 {[%emt 0:00:06]} 43. h6 {[%emt 0:00:02]} gxh6 {[%emt 0:00:01]} 44. Bf6 {[%emt 0:00:01]} Re8 {[%emt 0:00:04]} 45. a5 {[%emt 0:00:02]} Ne4 {[%emt 0:00:03]} 46. Bh4 {[%emt 0:00:05]} Ra7 {[%emt 0:00:01]} 47. Ra1 {[%emt 0:00:03]} Kg7 {[%emt 0:00:03]} 48. Kg2 {[%emt 0:00:02]} f5 {[%emt 0:00:01]} 0-1

[Event "Floripa Super Blitz 2019"]
[Site "Florianopolis"]
[Date "2019.01.23"]
[Round "3"]
[White "Fier, Alexandr"]
[Black "Souza, Iago Henrique da Si"]
[Result "1-0"]
[ECO "D00"]
[WhiteElo "2540"]
[BlackElo "2060"]
[Annotator "ChessBase"]
[PlyCount "37"]
[EventDate "2019.01.23"]
[EventType "swiss"]
[EventCountry "BRA"]
[SourceTitle "playchess.com"]
[Source "ChessBase"]
[SourceQuality "1"]
[TimeControl "180+2"]

1. d4 {[%emt 0:00:00]} d5 {[%emt 0:00:00]} 2. Bg5 {[%emt 0:00:00]} c6 {[%emt 0:00:01]} 3. e3 {[%emt 0:00:01]} Bf5 {[%emt 0:00:01]} 4. Nd2 {[%emt 0:00:04]} Nf6 {[%emt 0:00:01]} 5. Bxf6 {[%emt 0:00:02]} gxf6 {[%emt 0:00:01]} 6. Bd3 {[%emt 0:00:01]} Bg6 {[%emt 0:00:01]} 7. h4 {[%emt 0:00:05]} e5 {[%emt 0:00:04]} 8. h5 {[%emt 0:00:05]} Bxd3 {[%emt 0:00:01]} 9. cxd3 {[%emt 0:00:01]} Bd6 {[%emt 0:00:02]} 10. Ne2 {[%emt 0:00:06]} Nd7 {[%emt 0:00:00]} 11. Nf3 {[%emt 0:00:01]} Qe7 {[%emt 0:00:05]} 12. a3 {[%emt 0:00:01]} a5 {[%emt 0:00:03]} 13. Nh4 {[%emt 0:00:03]} Qe6 {[%emt 0:00:29]} 14. e4 {[%emt 0:00:01]} dxe4 {[%emt 0:00:14]} 15. dxe4 {[%emt 0:00:01]} exd4 {[%emt 0:00:07]} 16. Nf5 {[%emt 0:00:01]} Bc5 {[%emt 0:00:16]} 17. O-O {[%emt 0:00:02]} O-O {[%emt 0:00:22]} 18. Nf4 {[%emt 0:00:04]} Qe5 {[%emt 0:00:10]} 19. Qg4+ {[%emt 0:00:02]} 1-0

[Event "Floripa Super Blitz 2019"]
[Site "Florianopolis"]
[Date "2019.01.23"]
[Round "4"]
[White "Stamenkovic, Dragan"]
[Black "Maldonado, Roberto"]
[Result "1-0"]
[ECO "A45"]
[WhiteElo "2378"]
[BlackElo "1974"]
[Annotator "NA"]
[PlyCount "64"]
[EventDate "2019.01.23"]
[EventType "swiss"]
[EventCountry "BRA"]
[SourceTitle "playchess.com"]
[Source "ChessBase"]
[SourceQuality "1"]
[TimeControl "180+2"]

1. d4 {[%emt 0:04:06]} Nf6 {[%emt 0:00:05]} 2. Bg5 {[%emt 0:00:02]} e6 {[%emt 0:00:02]} 3. e4 {[%emt 0:00:04]} Be7 {[%emt 0:00:05]} 4. Nd2 {[%emt 0:00:10]} d5 {[%emt 0:00:06]} 5. e5 {[%emt 0:00:04]} Nfd7 6. Bxe7 Qxe7 7. c3 {[%emt 0:00:08]} c5 8. Ngf3 {[%emt 0:00:18]} Nc6 {[%emt 0:00:01]} 9. a3 {[%emt 0:00:06]} c4 {[%emt 0:00:11]} 10. Be2 {[%emt 0:00:03]} b5 11. O-O {[%emt 0:00:02]} a5 {[%emt 0:00:02]} 12. Ne1 {[%emt 0:00:13]} f6 {[%emt 0:00:31]} 13. f4 {[%emt 0:00:04]} O-O {[%emt 0:00:03]} 14. Nc2 {[%emt 0:00:18]} fxe5 {[%emt 0:00:10]} 15. fxe5 {[%emt 0:00:02]} Bb7 {[%emt 0:00:03]} 16. Rxf8+ {[%emt 0:00:00]} Rxf8 {[%emt 0:00:02]} 17. Nf3 Rf4 {[%emt 0:00:24]} 18. Qd2 {[%emt 0:00:03]} Qf8 {[%emt 0:00:01]} 19. Ng5 {[%emt 0:00:00]} Nd8 {[%emt 0:00:04]} 20. Nh3 {[%emt 0:00:00]} Rf7 {[%emt 0:00:15]} 21. Bh5 {[%emt 0:00:00]} g6 {[%emt 0:00:08]} 22. Bg4 {[%emt 0:00:00]} h5 {[%emt 0:00:04]} 23. Be2 {[%emt 0:00:00]} Qg7 {[%emt 0:00:23]} 24. Qg5 {[%emt 0:00:00]} Rf8 {[%emt 0:00:15]} 25. Nf4 {[%emt 0:00:00]} Kh7 {[%emt 0:00:21]} 26. Rf1 {[%emt 0:00:00]} Nf7 {[%emt 0:00:12]} 27. Qe7 {[%emt 0:00:00]} Ng5 {[%emt 0:00:11]} 28. Qxg5 {[%emt 0:00:00]} Rf5 {[%emt 0:00:08]} 29. Qg3 {[%emt 0:00:00]} Nf8 {[%emt 0:00:04]} 30. Ne3 {[%emt 0:00:00]} Rf7 {[%emt 0:00:03]} 31. Bd1 {[%emt 0:00:10]} Bc8 {[%emt 0:00:01]} 32. Bc2 {[%emt 0:00:00]} Kh6 {[%emt 0:00:18]} 1-0

[Event "Floripa Super Blitz 2019"]
[Site "Florianopolis"]
[Date "2019.01.23"]
[Round "5"]
[White "Fier, Alexandr"]
[Black "Stamenkovic, Dragan"]
[Result "1-0"]
[ECO "B72"]
[WhiteElo "2540"]
[BlackElo "2378"]
[Annotator "ChessBase"]
[PlyCount "99"]
[EventDate "2019.01.23"]
[EventType "swiss"]
[EventCountry "BRA"]
[SourceTitle "playchess.com"]
[Source "ChessBase"]
[SourceQuality "1"]
[TimeControl "180+2"]

1. e4 {[%emt 0:00:00]} c5 {[%emt 0:00:00]} 2. Nf3 {[%emt 0:00:01]} d6 {[%emt 0:00:01]} 3. d4 {[%emt 0:00:01]} cxd4 {[%emt 0:00:02]} 4. Nxd4 {[%emt 0:00:01]} Nf6 {[%emt 0:00:01]} 5. Nc3 {[%emt 0:00:00]} g6 {[%emt 0:00:01]} 6. Be3 {[%emt 0:00:02]} Bg7 {[%emt 0:00:04]} 7. Be2 {[%emt 0:00:01]} O-O {[%emt 0:00:04]} 8. Qd2 {[%emt 0:00:01]} Nc6 {[%emt 0:00:06]} 9. O-O-O {[%emt 0:00:01]} Ng4 {[%emt 0:00:08]} 10. Bxg4 {[%emt 0:00:01]} Bxg4 {[%emt 0:00:01]} 11. f3 {[%emt 0:00:01]} Bd7 {[%emt 0:00:01]} 12. g4 {[%emt 0:00:04]} Ne5 {[%emt 0:00:14]} 13. b3 {[%emt 0:00:01]} Qa5 {[%emt 0:00:05]} 14. Kb1 {[%emt 0:00:03]} Nxf3 {[%emt 0:00:03]} 15. Nxf3 {[%emt 0:00:13]} Bxc3 {[%emt 0:00:02]} 16. Qg2 {[%emt 0:00:01]} Rac8 {[%emt 0:00:09]} 17. Bd4 {[%emt 0:00:01]} Bc6 {[%emt 0:00:33]} 18. Bxc3 {[%emt 0:00:08]} Qxc3 {[%emt 0:00:01]} 19. Nd4 {[%emt 0:00:01]} Rc7 {[%emt 0:00:24]} 20. h4 {[%emt 0:00:01]} e5 {[%emt 0:00:17]} 21. Nxc6 {[%emt 0:00:41]} Rxc6 {[%emt 0:00:02]} 22. h5 {[%emt 0:00:01]} Rfc8 {[%emt 0:00:04]} 23. Rh2 {[%emt 0:00:05]} a5 {[%emt 0:00:13]} 24. hxg6 {[%emt 0:00:01]} fxg6 {[%emt 0:00:01]} 25. Qf2 {[%emt 0:00:38]} R6c7 {[%emt 0:00:46]} 26. Rxd6 {[%emt 0:00:33]} a4 {[%emt 0:00:10]} 27. Qd2 {[%emt 0:00:06]} Qxd2 {[%emt 0:00:10]} 28. Rhxd2 {[%emt 0:00:01]} a3 {[%emt 0:00:06]} 29. R6d5 {[%emt 0:00:01]} Rc5 {[%emt 0:00:04]} 30. c4 {[%emt 0:00:00]} Kg7 {[%emt 0:00:01]} 31. Kc2 {[%emt 0:00:01]} Kh6 {[%emt 0:00:01]} 32. Rh2+ {[%emt 0:00:02]} Kg5 {[%emt 0:00:01]} 33. Rxh7 {[%emt 0:00:01]} b5 {[%emt 0:00:03]} 34. Re7 {[%emt 0:00:09]} Rxd5 {[%emt 0:00:04]} 35. exd5 {[%emt 0:00:01]} bxc4 {[%emt 0:00:02]} 36. Rxe5+ {[%emt 0:00:02]} Kf4 {[%emt 0:00:00]} 37. Re6 {[%emt 0:00:01]} g5 {[%emt 0:00:02]} 38. d6 {[%emt 0:00:04]} Kxg4 {[%emt 0:00:02]} 39. b4 {[%emt 0:00:03]} Kf5 {[%emt 0:00:02]} 40. Re7 {[%emt 0:00:01]} Rd8 {[%emt 0:00:02]} 41. d7 {[%emt 0:00:09]} Kf6 {[%emt 0:00:01]} 42. Re3 {[%emt 0:00:05]} Rxd7 {[%emt 0:00:01]} 43. Rxa3 {[%emt 0:00:02]} g4 {[%emt 0:00:03]} 44. Rc3 {[%emt 0:00:03]} Rd4 {[%emt 0:00:09]} 45. a4 {[%emt 0:00:01]} Kf5 {[%emt 0:00:00]} 46. a5 {[%emt 0:00:01]} Kf4 {[%emt 0:00:01]} 47. a6 {[%emt 0:00:01]} Rd6 {[%emt 0:00:01]} 48. b5 {[%emt 0:00:02]} Rd3 {[%emt 0:00:02]} 49. Rxc4+ {[%emt 0:00:01]} Kf3 {[%emt 0:00:00]} 50. Kxd3 {[%emt 0:00:01] Ke4+ Kxe4} 1-0

[Event "Floripa Super Blitz 2019"]
[Site "Florianopolis"]
[Date "2019.01.23"]
[Round "5"]
[White "Sunye Neto, Jaime"]
[Black "Araujo, Adalberto Marcos"]
[Result "1/2-1/2"]
[ECO "B39"]
[WhiteElo "2446"]
[BlackElo "2213"]
[Annotator "NA RC"]
[PlyCount "100"]
[EventDate "2019.01.23"]
[EventType "swiss"]
[EventCountry "BRA"]
[SourceTitle "playchess.com"]
[Source "ChessBase"]
[SourceQuality "1"]
[TimeControl "180+2"]

1. c4 {[%emt 0:00:00]} c5 {[%emt 0:00:00]} 2. Nf3 {[%emt 0:00:02]} g6 {[%emt 0:00:06]} 3. d4 {[%emt 0:00:02]} cxd4 {[%emt 0:00:01]} 4. Nxd4 {[%emt 0:00:01]} Bg7 {[%emt 0:00:03]} 5. e4 {[%emt 0:00:02]} Nc6 {[%emt 0:00:02]} 6. Be3 {[%emt 0:00:01]} Nf6 {[%emt 0:00:01]} 7. Nc3 {[%emt 0:00:02]} Ng4 {[%emt 0:00:17]} 8. Qxg4 {[%emt 0:00:02]} Nxd4 {[%emt 0:00:01]} 9. Qd1 {[%emt 0:00:02]} Ne6 {[%emt 0:00:01]} 10. Qd2 {[%emt 0:00:01]} d6 {[%emt 0:00:06]} 11. Be2 {[%emt 0:00:04]} O-O {[%emt 0:00:02]} 12. O-O {[%emt 0:00:04]} Bd7 {[%emt 0:00:10]} 13. Rfd1 {[%emt 0:00:06]} Rc8 {[%emt 0:00:20]} 14. Rac1 {[%emt 0:00:05]} Re8 {[%emt 0:00:05]} 15. b3 {[%emt 0:00:08]} Bc6 {[%emt 0:00:05]} 16. f3 {[%emt 0:00:04]} Qa5 {[%emt 0:00:05]} 17. Nd5 {[%emt 0:00:15]} Qxd2 {[%emt 0:00:04]} 18. Rxd2 {[%emt 0:00:02]} b6 {[%emt 0:00:01]} 19. Kf2 {[%emt 0:00:10]} f5 {[%emt 0:00:10]} 20. exf5 {[%emt 0:00:05]} gxf5 {[%emt 0:00:01]} 21. f4 {[%emt 0:00:10]} Nc5 {[%emt 0:00:11]} 22. Bf3 {[%emt 0:00:05]} e6 {[%emt 0:00:13]} 23. Nb4 {[%emt 0:00:20]} Bxf3 {[%emt 0:00:08]} 24. Kxf3 {[%emt 0:00:02]} Ne4 {[%emt 0:00:02]} 25. Rdc2 {[%emt 0:00:01]} Kf7 {[%emt 0:00:06]} 26. Nd3 {[%emt 0:00:04]} Ke7 {[%emt 0:00:09]} 27. Nf2 {[%emt 0:00:03]} Nxf2 {[%emt 0:00:01]} 28. Bxf2 {[%emt 0:00:02]} Rc6 {[%emt 0:00:04]} 29. a4 {[%emt 0:00:06]} Rec8 {[%emt 0:00:03]} 30. Ke2 {[%emt 0:00:03]} d5 {[%emt 0:00:07]} 31. Kd3 {[%emt 0:00:06]} dxc4+ {[%emt 0:00:01]} 32. Rxc4 {[%emt 0:00:01]} Rd6+ {[%emt 0:00:05]} 33. Ke2 {[%emt 0:00:02]} Rxc4 {[%emt 0:00:02]} 34. Rxc4 {[%emt 0:00:01]} e5 {[%emt 0:00:05]} 35. fxe5 {[%emt 0:00:03]} Bxe5 {[%emt 0:00:01]} 36. h3 {[%emt 0:00:03]} Ke6 {[%emt 0:00:05]} 37. b4 {[%emt 0:00:14]} Rd7 {[%emt 0:00:10]} 38. Rc6+ {[%emt 0:00:08]} Rd6 {[%emt 0:00:01]} 39. Rc8 {[%emt 0:00:04]} Rd7 {[%emt 0:00:12]} 40. a5 {[%emt 0:00:16]} bxa5 {[%emt 0:00:03]} 41. bxa5 {[%emt 0:00:01]} a6 {[%emt 0:00:07]} 42. Ra8 {[%emt 0:00:05]} Rd6 {[%emt 0:00:03]} 43. Bb6 {[%emt 0:00:03]} Rc6 {[%emt 0:00:22]} 44. Rxa6 {[%emt 0:00:03]} Rc2+ {[%emt 0:00:01]} 45. Kd3 {[%emt 0:00:11]} Rxg2 {[%emt 0:00:02]} 46. Bd4+ {[%emt 0:00:09]} Kd5 {[%emt 0:00:01]} 47. Bxe5 {[%emt 0:00:01]} Kxe5 {[%emt 0:00:00]} 48. Rh6 {[%emt 0:00:02]} Ra2 {[%emt 0:00:05]} 49. a6 {[%emt 0:00:02]} Ra3+ {[%emt 0:00:02]} 50. Ke2 {[%emt 0:00:01]} Kf4 {[%emt 0:00:02]} 1/2-1/2

[Event "Floripa Super Blitz 2019"]
[Site "Florianopolis"]
[Date "2019.01.23"]
[Round "5"]
[White "Borges, Guilherme Deola"]
[Black "Cubas, Jose Fernando"]
[Result "0-1"]
[ECO "D07"]
[WhiteElo "2171"]
[BlackElo "2506"]
[Annotator "ChessBase"]
[PlyCount "86"]
[EventDate "2019.01.23"]
[EventType "swiss"]
[EventCountry "BRA"]
[SourceTitle "playchess.com"]
[Source "ChessBase"]
[SourceQuality "1"]
[TimeControl "180+2"]

1. d4 {[%emt 0:00:00]} d5 {[%emt 0:00:00]} 2. c4 {[%emt 0:00:02]} Nc6 {[%emt 0:00:01]} 3. Nf3 {[%emt 0:00:05]} Bg4 {[%emt 0:00:02]} 4. e3 {[%emt 0:00:13]} e6 {[%emt 0:00:02]} 5. Nc3 {[%emt 0:00:03]} Bb4 {[%emt 0:00:04]} 6. h3 {[%emt 0:00:08]} Bxf3 {[%emt 0:00:06]} 7. Qxf3 {[%emt 0:00:02]} Nf6 {[%emt 0:00:00]} 8. Bd2 {[%emt 0:00:09]} Bxc3 {[%emt 0:00:05]} 9. Bxc3 {[%emt 0:00:01]} Ne4 {[%emt 0:00:02]} 10. Rc1 {[%emt 0:00:13]} O-O {[%emt 0:00:02]} 11. Bd3 {[%emt 0:00:06]} f5 {[%emt 0:00:02]} 12. O-O {[%emt 0:00:16]} a5 {[%emt 0:00:01]} 13. Bxe4 {[%emt 0:00:37]} fxe4 {[%emt 0:00:04]} 14. Qg3 Rf6 {[%emt 0:00:06]} 15. f4 {[%emt 0:00:10]} Ne7 {[%emt 0:00:24]} 16. Qe1 {[%emt 0:00:07]} Rh6 {[%emt 0:00:01]} 17. Bxa5 {[%emt 0:00:06]} b6 {[%emt 0:00:06]} 18. Bb4 {[%emt 0:00:01]} Nf5 {[%emt 0:00:01]} 19. a3 {[%emt 0:00:04]} c6 {[%emt 0:00:40]} 20. cxd5 {[%emt 0:00:02]} cxd5 {[%emt 0:00:02]} 21. Rc6 {[%emt 0:00:06]} Rc8 {[%emt 0:00:06]} 22. Rxc8 {[%emt 0:00:12]} Qxc8 {[%emt 0:00:00]} 23. Qd2 {[%emt 0:00:05]} Qd8 {[%emt 0:00:17]} 24. Rc1 {[%emt 0:00:03]} Rg6 {[%emt 0:00:05]} 25. Qc3 {[%emt 0:00:10]} h5 {[%emt 0:00:14]} 26. Qc8 {[%emt 0:00:25]} Qxc8 {[%emt 0:00:01]} 27. Rxc8+ {[%emt 0:00:01]} Kh7 {[%emt 0:00:01]} 28. Rc3 {[%emt 0:00:02]} Nh4 {[%emt 0:00:01]} 29. Rc2 {[%emt 0:00:04]} Nf5 {[%emt 0:00:33]} 30. Re2 {[%emt 0:00:12]} Rf6 {[%emt 0:00:04]} 31. Kf2 {[%emt 0:00:04]} h4 {[%emt 0:00:02]} 32. Rc2 {[%emt 0:00:06]} g5 {[%emt 0:00:02]} 33. Bd2 {[%emt 0:00:06]} gxf4 {[%emt 0:00:02]} 34. exf4 {[%emt 0:00:01]} Nxd4 {[%emt 0:00:05]} 35. Rc7+ {[%emt 0:00:01]} Kg6 {[%emt 0:00:02]} 36. Bc3 {[%emt 0:00:01]} e5 {[%emt 0:00:07]} 37. Ke3 {[%emt 0:00:05]} Nf5+ {[%emt 0:00:07]} 38. Kd2 {[%emt 0:00:01]} d4 {[%emt 0:00:01]} 39. fxe5 {[%emt 0:00:02]} dxc3+ {[%emt 0:00:02]} 40. Kxc3 {[%emt 0:00:01]} Re6 {[%emt 0:00:02]} 41. Rc8 {[%emt 0:00:05]} Rxe5 {[%emt 0:00:03]} 42. Rg8+ {[%emt 0:00:01]} Kf7 {[%emt 0:00:01]} 43. Rh8 {[%emt 0:00:01]} e3 {[%emt 0:00:01]} 0-1

[Event "Floripa Super Blitz 2019"]
[Site "Florianopolis"]
[Date "2019.01.23"]
[Round "5"]
[White "Ulloa, Gabriel"]
[Black "Quintiliano Pinto, Renato R."]
[Result "0-1"]
[ECO "B90"]
[WhiteElo "2068"]
[BlackElo "2441"]
[Annotator "NA"]
[PlyCount "64"]
[EventDate "2019.01.23"]
[EventType "swiss"]
[EventCountry "BRA"]
[SourceTitle "playchess.com"]
[Source "ChessBase"]
[SourceQuality "1"]
[TimeControl "180+2"]

1. e4 {[%emt 0:00:00]} c5 {[%emt 0:00:00]} 2. Nf3 {[%emt 0:00:00]} d6 {[%emt 0:00:00]} 3. Nc3 {[%emt 0:00:01]} a6 {[%emt 0:00:01]} 4. d4 {[%emt 0:00:02]} cxd4 {[%emt 0:00:01]} 5. Nxd4 {[%emt 0:00:01]} Nf6 {[%emt 0:00:01]} 6. Qf3 {[%emt 0:00:01]} Nbd7 {[%emt 0:00:04]} 7. h3 {[%emt 0:00:08]} g6 {[%emt 0:00:12]} 8. Be3 {[%emt 0:00:04]} e5 {[%emt 0:00:05]} 9. Nb3 {[%emt 0:00:06]} b5 {[%emt 0:00:03]} 10. O-O-O {[%emt 0:00:16]} Bb7 {[%emt 0:00:13]} 11. Bg5 {[%emt 0:00:04]} Be7 {[%emt 0:00:20]} 12. Kb1 {[%emt 0:00:07]} Rc8 {[%emt 0:00:06]} 13. Bh6 {[%emt 0:00:24]} Qc7 {[%emt 0:00:23]} 14. Bd3 {[%emt 0:00:21]} b4 {[%emt 0:00:29]} 15. Nd5 {[%emt 0:00:10]} Nxd5 {[%emt 0:00:02]} 16. exd5 {[%emt 0:00:01]} Nf6 {[%emt 0:00:32]} 17. Be4 {[%emt 0:01:05]} Nxe4 {[%emt 0:00:08]} 18. Qxe4 {[%emt 0:00:01]} f5 {[%emt 0:00:04]} 19. Qe2 {[%emt 0:00:01]} Qc4 {[%emt 0:00:11]} 20. Qxc4 {[%emt 0:00:09]} Rxc4 {[%emt 0:00:01]} 21. Na5 {[%emt 0:00:00]} Rc7 {[%emt 0:00:00]} 22. Nxb7 {[%emt 0:00:01]} Rxb7 {[%emt 0:00:01]} 23. h4 {[%emt 0:00:21]} Kf7 {[%emt 0:00:04]} 24. g3 {[%emt 0:00:08]} Rc8 {[%emt 0:00:02]} 25. Rhe1 {[%emt 0:00:04]} Bf6 {[%emt 0:00:06]} 26. Re2 {[%emt 0:00:03]} Rc4 {[%emt 0:00:02]} 27. Bc1 {[%emt 0:00:05]} Rb5 {[%emt 0:00:02]} 28. Be3 {[%emt 0:00:03]} h5 {[%emt 0:00:02]} 29. Red2 {[%emt 0:00:01]} f4 {[%emt 0:00:13]} 30. gxf4 {[%emt 0:00:05]} exf4 {[%emt 0:00:01]} 31. Ba7 {[%emt 0:00:02]} Bxh4 {[%emt 0:00:03]} 32. Bb8 {[%emt 0:00:02]} Rxb8 {[%emt 0:00:02]} 0-1

[Event "Floripa Super Blitz 2019"]
[Site "Florianopolis"]
[Date "2019.01.23"]
[Round "6"]
[White "Quintiliano Pinto, Renato R."]
[Black "Umetsubo, Cesar Hidemitsu"]
[Result "1-0"]
[ECO "C49"]
[WhiteElo "2441"]
[BlackElo "2407"]
[Annotator "NA"]
[PlyCount "39"]
[EventDate "2019.01.23"]
[EventType "swiss"]
[EventCountry "BRA"]
[SourceTitle "playchess.com"]
[Source "ChessBase"]
[SourceQuality "1"]
[TimeControl "180+2"]

1. e4 {[%emt 0:00:00]} e5 {[%emt 0:00:00]} 2. Nf3 {[%emt 0:00:01]} Nf6 {[%emt 0:00:00]} 3. Nc3 {[%emt 0:00:00]} Nc6 {[%emt 0:00:01]} 4. Bb5 {[%emt 0:00:01]} Bb4 {[%emt 0:00:04]} 5. O-O {[%emt 0:00:02]} O-O {[%emt 0:00:02]} 6. d3 {[%emt 0:00:00]} d6 {[%emt 0:00:02]} 7. Ne2 {[%emt 0:00:01]} Nh5 {[%emt 0:00:36]} 8. c3 {[%emt 0:00:05]} Ba5 {[%emt 0:00:01]} 9. a4 {[%emt 0:00:29]} a6 {[%emt 0:00:08]} 10. Bc4 {[%emt 0:00:02]} Be6 {[%emt 0:00:06]} 11. Be3 {[%emt 0:00:49]} Bxc4 {[%emt 0:00:11]} 12. dxc4 {[%emt 0:00:01]} f5 {[%emt 0:00:11]} 13. exf5 {[%emt 0:00:17]} Rxf5 {[%emt 0:00:01]} 14. b4 {[%emt 0:00:05]} Bb6 {[%emt 0:00:09]} 15. Bxb6 {[%emt 0:00:02]} cxb6 {[%emt 0:00:01]} 16. Ng3 {[%emt 0:00:02]} Nxg3 {[%emt 0:00:05]} 17. hxg3 {[%emt 0:00:01]} Rc8 {[%emt 0:00:18]} 18. Qd3 {[%emt 0:01:03]} Ra8 {[%emt 0:00:06]} 19. Qd1 {[%emt 0:00:02]} Ne7 {[%emt 0:00:22]} 20. Qd3 {[%emt 0:00:09]} 1-0